bitfinex-derivatives/quotes_ETHF0:USTF0_20250520
["timestamp","ask_amount","ask_price","bid_price","bid_amount"]
[1747706242017,3.99247,2548.3,2548.1,1.3194]
[1747706242220,1.3511,2548.2,2548.1,1.3194]
[1747706242622,2.13579,2548.2,2548.1,1.3194]
[1747706242824,1.3511,2548.2,2548.1,1.3194]
[1747706243025,2.13579,2548.2,2548.1,1.3194]
[1747706243220,1.3511,2548.2,2548.1,1.3194]
[1747706243425,2.09215,2548.7,2548.1,14.6274]
[1747706243622,0.7846,2548.5,2548.4,3.2078]
[1747706243825,1.3076,2548.7,2548.2,8.308]
[1747706244028,1.3076,2548.4,2548.2,10.44917]
[1747706244224,1.3076,2548.4,2548.3,1.3565]
[1747706244524,1.3076,2548.4,2548.3,2.14116]
[1747706244731,3.2078,2549.0,2548.3,1.3565]
[1747706244929,0.78459,2548.6,2548.3,2.14115]
[1747706245229,3.2078,2549.0,2548.5,0.7846]
[1747706245421,0.78454,2548.8,2548.6,1.3565]
[1747706245620,1.3076,2548.7,2548.6,1.3565]
[1747706245936,41.4472,2549.1,2548.6,2.14107]
[1747706246120,1.9548,2549.1,2548.7,3.2078]
[1747706246320,0.78451,2548.8,2548.7,3.2078]
[1747706246527,1.9548,2549.1,2548.6,1.3565]
[1747706246823,1.9548,2549.1,2548.5,0.6312]
[1747706246824,3.2078,2549.0,2548.4,3.2078]
[1747706247018,2.10739,2548.9,2548.6,0.78456]
[1747706247219,1.3229,2548.9,2548.7,0.78454]
[1747706247419,2.10738,2548.9,2548.6,0.78456]
[1747706247626,1.3229,2548.9,2548.7,0.78454]
[1747706247825,1.3229,2548.9,2548.8,1.2856]
[1747706248218,2.10738,2548.9,2548.8,1.2856]
[1747706248426,1.3229,2548.9,2548.8,1.2856]
[1747706248630,12.21848046,2549.5,2548.8,1.2856]
[1747706248932,2.10735,2549.0,2548.9,0.00589102]
[1747706250234,0.78443,2549.1,2548.9,0.00589102]
[1747706250435,0.78445,2549.0,2548.9,1.26659102]
[1747706250636,0.78445,2549.0,2548.9,0.00589102]
[1747706252630,3.99225,2549.0,2548.9,0.00589102]
[1747706252829,0.78445,2549.0,2548.9,0.00589102]
[1747706253033,1.379,2549.1,2549.0,0.78445]
[1747706253228,3.2078,2549.6,2548.9,16.51869102]
[1747706253430,3.2078,2549.6,2549.2,3.2078]
[1747706253742,0.78435,2549.3,2549.2,3.2078]
[1747706253931,0.78435,2549.3,2549.2,11.5128]
[1747706254126,1.3185,2549.5,2549.2,3.2078]
[1747706254633,1.9599,2550.6,2549.3,1.2893]
[1747706254933,0.78426,2549.7,2549.6,3.2078]
[1747706255836,11.58271,2550.2,2549.6,3.2078]
[1747706255837,0.78422,2549.8,2549.6,3.2078]
[1747706256135,1.3867,2549.7,2549.6,3.2078]
[1747706256337,0.6525,2550.4,2549.6,3.99206]
[1747706256338,0.78412,2550.1,2549.6,3.99206]
[1747706256530,0.78414,2550.0,2549.6,4.5668]
[1747706256732,1.3867,2549.9,2549.7,1.359]
[1747706257031,0.78426,2549.7,2549.5,3.2078]
[1747706257228,1.3867,2549.6,2549.5,3.2078]
[1747706257430,2.17096,2549.6,2549.5,3.2078]
[1747706258532,1.3867,2549.6,2549.5,3.2078]
[1747706258732,1.96014,2550.3,2549.5,3.2078]
[1747706258733,0.78401,2550.5,2549.5,16.5098]
[1747706258933,0.78399,2550.5,2550.4,3.2078]
[1747706259133,0.78394,2550.7,2550.4,3.2078]
[1747706259328,1.3377,2550.8,2550.4,3.2078]
[1747706259541,0.78393,2550.7,2550.5,1.3133]
[1747706259834,14.63455524,2551.4,2550.5,1.3133]
[1747706260040,0.6439,2551.2,2550.7,3.2078]
[1747706260241,0.7838,2551.1,2550.7,3.2078]
[1747706260433,0.7838,2551.1,2550.7,4.5211]
[1747706260739,0.78384,2551.0,2550.7,4.5211]
[1747706261232,0.78388,2550.9,2550.7,4.5211]
[1747706261438,0.6439,2551.2,2550.7,4.5211]
[1747706261839,0.78388,2550.9,2550.7,4.5211]
[1747706262031,1.2745,2550.8,2550.7,4.5211]
[1747706262236,2.05839,2550.8,2550.7,3.2078]
[1747706262432,0.78402,2550.4,2550.3,1.2792]
[1747706262638,0.78405,2550.3,2550.2,3.21369102]
[1747706262834,1.2745,2550.3,2550.2,3.21369102]
[1747706263036,2.05855,2550.3,2550.2,3.21369102]
[1747706263233,2.05855,2550.3,2550.2,0.00589102]
[1747706263544,2.05855,2550.3,2550.2,3.21369102]
[1747706263737,2.05855,2550.3,2550.2,0.00589102]
[1747706264435,7.05855,2550.3,2550.2,0.00589102]
[1747706264643,0.78425,2549.7,2549.5,3.2078]
[1747706264844,14.6985,2550.3,2549.5,3.2078]
[1747706264845,1.2709,2549.6,2549.5,3.2078]
[1747706265046,2.05516,2549.6,2549.5,3.2078]
[1747706265941,0.78426,2549.6,2549.5,3.2078]
[1747706266147,6.43833,2551.0,2549.8,0.7842]
[1747706266350,2.05493,2550.4,2550.2,3.2078]
[1747706266544,0.78405,2550.3,2550.2,3.2078]
[1747706266851,2.05495,2550.3,2550.2,3.2078]
[1747706267040,1.2709,2550.3,2550.2,3.2078]
[1747706267946,1.2963,2550.6,2550.3,0.78404]
[1747706268146,0.6345,2550.6,2550.4,1.3557]
[1747706268338,1.9006,2550.6,2550.4,1.3557]
[1747706268539,2.68457,2550.6,2550.4,1.3557]
[1747706269048,0.78988102,2550.5,2550.2,3.99186]
[1747706269255,1.27199102,2550.5,2550.3,2.13975]
[1747706269748,2.05598102,2550.5,2550.3,1.3557]
[1747706269948,0.78402,2550.4,2550.3,1.3557]
[1747706270144,2.05012,2550.4,2550.3,1.3557]
[1747706270750,1.2661,2550.4,2550.3,1.3557]
[1747706272146,2.05012,2550.4,2550.3,1.3557]
[1747706272448,0.78405,2550.3,2550.2,3.2078]
[1747706272653,2.06795,2550.3,2550.2,3.2078]
[1747706273548,2.06796,2550.3,2550.0,2.14874]
[1747706273749,2.06796,2550.3,2550.2,3.2078]
[1747706274048,2.06796,2550.3,2550.0,1.3646]
[1747706274349,1.2839,2550.3,2550.0,1.3646]
[1747706274648,2.06796,2550.3,2550.1,3.2078]
[1747706275538,0.00589102,2550.5,2550.1,3.2078]
[1747706275741,1.28109102,2550.5,2550.4,3.2078]
[1747706275942,2.06510102,2550.5,2550.4,3.2078]
[1747706276348,0.78403,2550.4,2550.2,1.2634]
[1747706276549,2.05923,2550.4,2550.2,1.2634]
[1747706276949,0.78405,2550.3,2550.2,1.2634]
[1747706277149,0.78405,2550.3,2549.6,1.2659]
[1747706277150,0.78408,2550.2,2549.8,3.99198]
[1747706277353,2.12591,2550.1,2549.9,1.2694]
[1747706277649,1.3418,2550.1,2549.9,1.2694]
[1747706278855,0.78414,2550.0,2549.9,1.2694]
[1747706279059,0.78417,2549.9,2549.8,3.2078]
[1747706279251,2.12597,2549.9,2549.8,3.2078]
[1747706280052,0.78429,2549.5,2549.4,4.4772]
[1747706280254,0.78429,2549.5,2549.4,3.2078]
[1747706280757,2.08769,2549.5,2549.4,3.2078]
[1747706281351,2.08769,2549.5,2549.3,0.45376188]
[1747706281352,0.78432,2549.4,2549.3,0.45376188]
[1747706281653,2.08772,2549.4,2549.3,0.45376188]
[1747706281953,0.78432,2549.4,2549.3,0.45376188]
[1747706282455,0.78432,2549.4,2549.3,0.00589102]
[1747706283257,8.424,2549.6,2549.4,0.78432]
[1747706283455,9.20826,2549.6,2549.5,1.2918]
[1747706283758,0.78426,2549.6,2549.5,1.2918]
[1747706285848,0.78432,2549.4,2549.3,3.21369102]
[1747706286156,0.78429,2549.6,2549.3,3.21369102]
[1747706286456,0.78432,2549.4,2549.3,3.21369102]
[1747706289464,0.78431,2549.5,2549.3,3.21369102]
[1747706289663,0.78431,2549.5,2549.4,1.3515]
[1747706289955,0.78433,2549.4,2549.3,0.00589102]
[1747706292065,1.3772,2549.4,2549.3,3.21369102]
[1747706292263,2.16152,2549.4,2549.3,3.21369102]
[1747706292457,2.16152,2549.4,2549.3,0.00589102]
[1747706297567,0.78442,2549.1,2549.0,3.2078]
[1747706297769,1.96105,2549.1,2548.7,3.2078]
[1747706298061,0.78457,2548.6,2548.5,1.2569]
[1747706300568,0.7846,2548.5,2548.4,0.6919]
[1747706300865,2.1733,2548.5,2548.4,0.6919]
[1747706301066,2.1733,2548.5,2548.4,2.0371]
[1747706301575,0.78459,2548.6,2548.4,2.0371]
[1747706301865,8.40289102,2548.8,2548.4,2.0371]
[1747706302064,8.40289102,2548.8,2548.4,5.2449]
[1747706302260,0.78457,2548.7,2548.5,0.7846]
[1747706302461,0.78457,2548.7,2548.6,1.3452]
[1747706303768,0.00589102,2548.8,2548.7,0.78454]
[1747706303969,0.00589102,2548.8,2548.7,3.8673]
[1747706304974,0.79040102,2548.8,2548.7,3.8673]
[1747706306775,0.00589102,2548.8,2548.7,3.8673]
[1747706306980,0.79040102,2548.8,2548.7,3.8673]
[1747706309998,0.79689695,2548.8,2548.7,3.8673]
[1747706310682,0.79689695,2548.8,2548.7,3.2078]
[1747706311087,0.79689695,2548.8,2548.7,3.8611]
[1747706311788,0.78454,2548.7,2548.6,1.3452]
[1747706312896,2.08164,2548.7,2548.6,1.3452]
[1747706313395,0.7846,2548.5,2548.4,3.2078]
[1747706313991,2.1585,2548.5,2548.4,3.2078]
[1747706315081,0.7846,2548.5,2548.4,3.2078]
[1747706315484,2.1585,2548.5,2548.4,3.2078]
[1747706317087,0.78463,2548.4,2548.3,0.00589102]
[1747706317285,2.16113,2548.4,2548.3,0.00589102]
[1747706317490,0.78463,2548.4,2548.3,3.21369102]
[1747706317891,0.78463,2548.4,2548.3,0.00589102]
[1747706318897,0.78473,2548.1,2548.0,3.2078]
[1747706319096,0.78482,2547.8,2547.7,0.6924]
[1747706320295,0.78477,2548.0,2547.7,0.6924]
[1747706320498,0.78473,2548.1,2547.9,3.2078]
[1747706320790,49.2,2548.2,2547.9,3.2078]
[1747706320996,9.772,2548.2,2547.9,3.2078]
[1747706321191,9.772,2548.2,2547.7,0.6924]
[1747706321497,0.78482,2547.8,2547.7,0.6924]
[1747706321895,0.78482,2547.8,2547.6,3.2078]
[1747706321896,0.78485,2547.7,2547.6,3.2078]
[1747706322795,2.16425,2547.7,2547.6,3.2078]
[1747706323298,2.83955,2547.7,2547.6,3.2078]
[1747706323493,3.49095,2547.7,2547.6,3.2078]
[1747706323692,7.7061,2547.7,2547.0,3.2078]
[1747706323901,0.78506,2547.1,2547.0,3.2078]
[1747706324698,0.78502,2547.2,2547.0,3.2078]
[1747706324897,0.00589102,2547.3,2547.0,3.2078]
[1747706325200,0.78503,2547.1,2547.0,3.2078]
[1747706326502,0.7851,2546.9,2546.8,0.69379102]
[1747706327699,0.7851,2546.9,2546.8,0.00589102]
[1747706328195,0.78522,2546.5,2546.4,3.2078]
[1747706328391,10.9746,2547.0,2546.4,3.2078]
[1747706328392,0.7852,2546.6,2546.4,3.2078]
[1747706328599,0.78522,2546.5,2546.4,3.2078]
[1747706329903,4.5967,2546.8,2546.4,3.2078]
[1747706330207,0.78522,2546.5,2546.4,3.2078]
[1747706331010,2.05172,2546.5,2546.4,3.2078]
[1747706331300,0.78528,2546.3,2546.2,0.00589102]
[1747706332505,2.07378,2546.3,2546.2,0.00589102]
[1747706333508,9.09328,2546.3,2546.2,0.00589102]
[1747706334405,0.78525,2546.4,2546.2,0.00589102]
[1747706334605,9.09325,2546.4,2546.2,0.00589102]
[1747706334802,9.09325,2546.4,2546.3,3.2078]
[1747706335112,9.09325,2546.4,2546.3,1.2767]
[1747706337206,0.78525,2546.4,2546.3,1.2767]
[1747706337407,8.309,2546.5,2546.3,1.2767]
[1747706337713,8.309,2546.7,2546.3,1.2767]
[1747706337911,9.5973,2546.7,2546.3,1.2767]
[1747706338211,10.38247,2546.7,2546.3,1.2767]
[1747706339311,9.5973,2546.7,2546.3,1.2767]
[1747706339712,10.38246,2546.7,2546.3,1.2767]
[1747706340009,0.78528,2546.3,2546.2,0.00589102]
[1747706340209,9.09428,2546.3,2546.2,0.00589102]
[1747706340709,8.309,2546.3,2546.2,0.00589102]
[1747706340910,0.6874,2546.5,2546.2,0.00589102]
[1747706341113,8.309,2546.5,2546.3,3.2078]
[1747706341308,9.09422,2546.5,2546.4,1.9804]
[1747706341716,0.78528,2546.3,2546.2,0.00589102]
[1747706342007,0.78528,2546.3,2546.2,1.30459102]
[1747706342815,2.06877,2546.4,2546.2,1.30459102]
[1747706343109,1.2835,2546.4,2546.2,1.30459102]
[1747706343311,0.78528,2546.3,2546.2,1.30459102]
[1747706343509,1.2835,2546.4,2546.2,1.30459102]
[1747706343714,8.309,2546.5,2546.4,0.78525]
[1747706344110,2.06867,2546.7,2546.5,0.78522]
[1747706344307,2.06867,2546.7,2546.6,1.3509]
[1747706344505,10.37867,2546.7,2546.6,1.3509]
[1747706346817,0.78522,2546.5,2546.4,0.6829]
[1747706347019,0.78522,2546.5,2546.4,1.9989]
[1747706348119,9.5935,2546.7,2546.4,1.9989]
[1747706348620,0.78522,2546.5,2546.4,1.9989]
[1747706353022,0.78528,2546.3,2546.2,0.00589102]
[1747706353508,0.78528,2546.3,2546.2,1.36969102]
[1747706353914,0.78528,2546.3,2546.2,0.00589102]
[1747706354314,0.78527,2546.4,2546.2,1.36969102]
[1747706354511,0.78528,2546.3,2546.2,1.36969102]
[1747706354718,2.06718,2546.3,2546.2,1.36969102]
[1747706356526,10.37018,2546.3,2546.2,1.36969102]
[1747706358026,10.37018,2546.3,2546.2,0.00589102]
[1747706358325,11.05928,2546.3,2546.2,0.00589102]
[1747706358722,16.05928,2546.3,2546.2,1.02e-06]
[1747706359121,16.05928,2546.3,2545.6,1.07797086]
[1747706359122,0.78547,2545.7,2545.6,1.88e-06]
[1747706359319,0.78553,2545.5,2545.3,0.89591621]
[1747706359626,0.78559,2545.3,2545.2,6.46e-06]
[1747706359830,0.78568,2545.0,2544.9,0.40099218]
[1747706360016,0.78577,2544.7,2544.6,1.49377295]
[1747706360221,12.29657,2544.7,2544.6,1.49377295]
[1747706360522,0.78584,2544.5,2544.4,2.6e-07]
[1747706360825,0.78599,2544.0,2543.9,3.2078]
[1747706362426,2.08229,2544.0,2543.9,3.2078]
[1747706363224,0.78608,2543.7,2543.6,5.29948925]
[1747706363624,9.09108,2543.7,2543.6,0.02465925]
[1747706363833,0.78618,2543.4,2543.3,1.3836]
[1747706364734,4.5041,2543.6,2542.5,8.305]
[1747706365025,0.7863,2543.0,2542.9,3.2078]
[1747706366127,0.7863,2543.0,2542.2,9.36281246]
[1747706366128,0.78651,2542.4,2542.2,0.6597]
[1747706366331,0.78647,2542.5,2542.3,1.9874]
[1747706366531,0.78647,2542.5,2542.4,3.2078]
[1747706366824,0.78647,2542.5,2542.4,4.5126]
[1747706367630,0.79233102,2542.6,2542.4,4.5126]
[1747706367928,0.00589102,2542.6,2542.4,4.5126]
[1747706368125,0.78645,2542.5,2542.4,4.5126]
[1747706368726,0.78645,2542.5,2542.4,1.3048]
[1747706369326,0.00589102,2542.6,2542.4,1.3048]
[1747706369531,0.79233102,2542.6,2542.4,1.3048]
[1747706370232,0.00589102,2542.6,2542.4,1.3048]
[1747706370634,0.78645,2542.5,2542.4,1.3048]
[1747706371129,0.00589102,2542.6,2542.4,1.3048]
[1747706371130,0.79233102,2542.6,2542.4,1.3048]
[1747706371929,0.00589102,2542.6,2542.4,4.5126]
[1747706372937,0.79231102,2542.6,2542.4,4.5126]
[1747706373138,0.78645,2542.5,2542.4,4.5126]
[1747706374737,0.78645,2542.5,2542.4,1.3048]
[1747706375237,0.78667,2541.8,2541.7,3.2078]
[1747706375443,0.78665,2541.9,2541.7,3.2078]
[1747706375745,0.78667,2541.8,2541.7,3.2078]
[1747706376641,0.78666,2541.9,2541.7,3.2078]
[1747706376937,0.78663,2542.0,2541.7,3.99448]
[1747706377336,0.78664,2541.9,2541.7,3.99448]
[1747706378044,0.78663,2542.0,2541.7,3.99448]
[1747706378538,0.78659,2542.1,2541.8,1.3948]
[1747706378741,1.3094,2542.3,2541.8,1.3948]
[1747706379142,0.78656,2542.2,2542.0,3.2078]
[1747706379341,0.78656,2542.2,2542.1,1.3948]
[1747706379942,0.78658,2542.1,2542.0,3.2078]
[1747706380644,0.78657,2542.2,2542.0,3.2078]
[1747706380845,0.78657,2542.2,2542.1,1.293]
[1747706382933,2.09592,2542.3,2542.1,2.07956]
[1747706383139,0.78654,2542.2,2542.1,1.293]
[1747706383437,0.78658,2542.1,2542.0,3.8953]
[1747706383637,0.78656,2542.2,2542.0,3.8953]
[1747706383839,0.78658,2542.1,2542.0,3.8953]
[1747706385556,1.2965,2542.4,2542.0,3.8953]
[1747706385941,0.78658,2542.1,2542.0,3.8953]
[1747706387453,0.78658,2542.1,2542.0,3.2078]
[1747706388445,0.78658,2542.1,2540.7,1.96753]
[1747706388446,0.78676,2541.5,2541.4,3.2078]
[1747706388953,0.78174349,2541.5,2541.4,3.2078]
[1747706391851,0.78686,2541.2,2541.1,3.2078]
[1747706392648,8.307,2541.3,2540.8,1.2707]
[1747706392852,0.78695,2540.9,2540.8,1.2707]
[1747706394557,0.78695,2540.9,2540.8,0.6385]
[1747706394749,0.78698,2540.8,2540.7,3.2078]
[1747706394942,2.17148,2540.8,2540.7,3.2078]
[1747706395456,8.307,2540.9,2540.7,3.2078]
[1747706395753,8.307,2540.9,2540.8,1.2982]
[1747706396148,9.09395,2540.9,2540.8,1.2982]
[1747706396651,1.2737,2541.1,2540.8,1.2982]
[1747706396852,2.0606,2541.1,2540.8,2.08515]
[1747706397050,0.00590272,2541.3,2540.9,0.6631]
[1747706397248,0.00590272,2541.3,2541.0,5.2929]
[1747706397249,1.27960272,2541.3,2541.0,5.2929]
[1747706397448,1.27960272,2541.3,2541.0,4.506]
[1747706397650,2.06644272,2541.3,2541.1,0.78688]
[1747706397855,1.27960272,2541.3,2541.2,1.2982]
[1747706398059,0.00590272,2541.3,2541.2,2.08505]
[1747706398253,0.00590272,2541.3,2541.0,3.2078]
[1747706398454,0.79274272,2541.3,2541.0,3.99472]
[1747706398654,0.79274272,2541.3,2541.1,1.3503]
[1747706399554,0.00590272,2541.3,2541.1,2.13716]
[1747706399756,0.00590272,2541.3,2541.2,1.3503]
[1747706399954,0.00590272,2541.3,2541.2,2.13715]
[1747706401050,0.00590272,2541.3,2541.2,7.13715]
[1747706401357,0.6638,2542.2,2541.2,7.13715]
[1747706401358,0.78663,2542.0,2541.2,7.13715]
[1747706401557,0.78663,2542.0,2541.7,3.99449]
[1747706401754,1.361,2542.1,2541.8,2.0124]
[1747706401951,0.78656,2542.2,2541.9,0.78662]
[1747706402153,0.78656,2542.2,2542.0,1.3777]
[1747706402348,1.361,2542.2,2542.0,4.5855]
[1747706402659,1.361,2542.2,2542.0,5.37209]
[1747706402861,1.361,2542.2,2542.0,4.5855]
[1747706403058,2.14755,2542.2,2542.0,5.3721]
[1747706403358,1.361,2542.2,2542.0,5.3721]
[1747706403660,0.00590272,2542.4,2542.0,4.5855]
[1747706403964,0.00590272,2542.4,2542.3,3.2078]
[1747706404154,0.79238272,2542.4,2542.3,1.3777]
[1747706404350,0.78664,2541.9,2541.8,1.28660272]
[1747706404852,0.78662,2542.0,2541.8,1.28660272]
[1747706405065,0.697,2542.3,2541.8,1.28660272]
[1747706405359,1.48353,2542.3,2542.0,0.7866]
[1747706405561,2.79533,2542.3,2542.0,0.7866]
[1747706405758,2.79533,2542.3,2542.1,1.2754]
[1747706405963,2.0088,2542.3,2542.1,2.06197]
[1747706406162,1.3118,2542.3,2542.1,2.06197]
[1747706406364,0.00590272,2542.4,2542.3,0.78651]
[1747706406568,0.78651,2542.3,2542.2,1.2754]
[1747706406756,0.78651,2542.3,2541.8,2.07326272]
[1747706406757,0.78658,2542.1,2541.8,2.07326272]
[1747706406957,0.78656,2542.2,2541.9,2.06204]
[1747706407165,2.09833,2542.3,2541.9,2.06204]
[1747706407363,2.09833,2542.3,2542.0,3.9944]
[1747706407658,1.3118,2542.3,2542.2,0.78654]
[1747706407963,0.00590272,2542.4,2542.3,0.78651]
[1747706408165,0.00590272,2542.4,2542.2,0.78652]
[1747706408362,0.00590272,2542.4,2542.3,5.29891]
[1747706411263,0.00590272,2542.4,2542.3,8.03891]
[1747706411762,0.00590272,2542.4,2542.3,16.34491]
[1747706413775,0.00590272,2542.4,2542.3,21.34491]
[1747706414268,2.72e-06,2542.4,2542.3,24.43701]
[1747706416373,2.72e-06,2542.4,2542.3,24.42501]
[1747706420971,1.3342,2543.4,2543.3,0.7862]
[1747706421684,0.7861,2543.7,2543.5,0.78614]
[1747706421971,1.3787,2543.5,2543.3,1.26900272]
[1747706422175,1.3787,2543.5,2543.4,0.78615]
[1747706422569,0.6622,2543.8,2543.5,0.78614]
[1747706422775,0.6622,2543.8,2543.3,1.26900272]
[1747706422776,0.78615,2543.5,2543.3,0.79209272]
[1747706423087,1.3151,2543.4,2543.3,0.79209272]
[1747706423475,2.10127,2543.4,2543.3,0.00590272]
[1747706423782,2.77377,2543.4,2543.3,0.00590272]
[1747706425385,1.9876,2543.4,2543.3,0.79210272]
[1747706425687,2.77377,2543.4,2543.3,0.00590272]
[1747706425877,7.77377,2543.4,2543.3,0.00590272]
[1747706426072,0.78623,2543.2,2543.1,0.5898]
[1747706427980,1.9876,2543.4,2543.1,0.5898]
[1747706428180,0.78623,2543.2,2543.1,0.5898]
[1747706428983,5.9816,2543.4,2543.1,0.5898]
[1747706429282,5.9816,2543.4,2543.2,0.78622]
[1747706429488,5.1954,2543.4,2543.1,0.5898]
[1747706429790,5.98159,2543.4,2543.1,1.37605]
[1747706430179,0.78621,2543.3,2543.1,1.37605]
[1747706430486,1.3478,2543.2,2543.1,1.37605]
[1747706431382,2.13403,2543.2,2543.1,0.5898]
[1747706431580,2.82413,2543.2,2543.1,0.5898]
[1747706434685,11.03193,2543.2,2543.1,0.5898]
[1747706434988,0.78651,2542.3,2542.2,0.44076558]
[1747706435387,0.7865,2542.4,2542.2,0.44076558]
[1747706435590,0.78647,2542.5,2542.2,1.22730558]
[1747706435785,1.3913,2542.3,2542.2,1.22730558]
[1747706436782,2.17781,2542.3,2542.2,0.44076558]
[1747706437289,10.46881,2542.3,2542.2,0.44076558]
[1747706437488,10.46881,2542.3,2542.1,0.9258]
[1747706437489,0.78654,2542.2,2542.1,0.9258]
[1747706437688,2.17784,2542.2,2542.1,0.9258]
[1747706437888,7.17784,2542.2,2542.1,0.9258]
[1747706438102,16.12134,2542.2,2542.1,0.9258]
[1747706438384,15.3348,2542.2,2541.5,3.64856558]
[1747706438592,3.2078,2542.1,2541.8,0.78665]
[1747706438791,1.984,2542.0,2541.9,0.78663]
[1747706438991,1.984,2542.0,2541.8,0.78665]
[1747706439591,2.77061,2542.0,2541.8,0.78665]
[1747706439791,1.984,2542.0,2541.5,3.64856558]
[1747706440089,0.78671,2541.7,2541.5,3.64856558]
[1747706440287,2.0091,2541.6,2541.5,3.64856558]
[1747706440484,2.79583,2541.6,2541.5,3.64856558]
[1747706440687,6.00363,2541.6,2541.5,0.44076558]
[1747706440883,5.2169,2541.6,2541.0,3.9947]
[1747706441085,0.78684,2541.3,2541.0,3.9947]
[1747706441289,2.10375,2541.2,2541.0,3.2078]
[1747706441596,0.78688,2541.1,2541.0,3.2078]
[1747706441787,3.45888,2541.1,2540.8,0.78697]
[1747706441987,0.78697,2540.9,2540.7,3.64856558]
[1747706442193,2.672,2541.1,2540.7,3.64856558]
[1747706442194,2.10388,2540.8,2540.7,3.64856558]
[1747706443484,1.3169,2540.8,2540.7,3.64856558]
[1747706443790,1.3169,2540.8,2540.7,0.44076558]
[1747706444194,1.3169,2540.8,2540.4,3.2078]
[1747706444491,2.10389,2540.8,2540.4,3.2078]
[1747706444696,2.10389,2540.8,2540.5,0.78706]
[1747706444894,1.3169,2540.8,2540.4,3.2078]
[1747706445693,0.78701,2540.7,2540.4,3.99488]
[1747706445890,1.3498,2540.6,2540.4,3.99488]
[1747706446096,1.9808,2540.6,2540.5,0.78707]
[1747706446602,1.3498,2540.6,2540.5,0.78707]
[1747706446803,1.3498,2540.6,2540.5,2.13597]
[1747706447189,3.2078,2541.0,2540.9,0.78695]
[1747706447394,0.78697,2540.9,2540.5,2.74]
[1747706447595,2.0175,2540.9,2540.7,3.2078]
[1747706447898,2.0175,2540.9,2540.8,0.78698]
[1747706448099,2.0175,2540.9,2540.4,3.2078]
[1747706448403,2.0175,2540.9,2540.7,0.787]
[1747706448593,2.0175,2540.9,2540.4,3.2078]
[1747706448797,2.0175,2540.9,2540.8,0.78698]
[1747706449198,1.3243,2540.9,2540.8,2.06228]
[1747706450005,8.288,2541.2,2540.8,1.2753]
[1747706450206,1.2786,2541.1,2541.0,0.7869]
[1747706451104,8.94140272,2541.3,2541.2,0.78685]
[1747706451500,8.29490272,2541.3,2541.2,0.78685]
[1747706452105,0.00590272,2541.3,2541.0,3.2078]
[1747706452305,0.00590272,2541.3,2541.2,0.78685]
[1747706453013,2.07132272,2541.3,2541.1,1.3657]
[1747706453507,1.28450272,2541.3,2541.1,1.3657]
[1747706453807,0.78685,2541.2,2541.0,3.9947]
[1747706454006,1.2658,2541.1,2541.0,3.9947]
[1747706454408,0.00590272,2541.3,2541.0,3.2078]
[1747706454603,0.00590272,2541.3,2541.1,1.333]
[1747706455099,1.27170272,2541.3,2541.1,1.333]
[1747706455305,1.27170272,2541.3,2541.2,0.78685]
[1747706456104,0.00590272,2541.3,2541.2,0.78685]
[1747706458509,0.00590272,2541.3,2541.1,4.7269]
[1747706458715,0.00590272,2541.3,2541.2,0.78685]
[1747706458906,0.00590272,2541.3,2541.2,2.07375]
[1747706465225,2.72e-06,2541.3,2541.2,7.07375]
[1747706465622,2.72e-06,2541.3,2541.2,15.36175]
[1747706466322,2.72e-06,2541.3,2541.2,15.76955038]
[1747706466528,2.72e-06,2541.3,2541.2,10.76955038]
[1747706466726,2.72e-06,2541.3,2541.2,15.76955038]
[1747706468431,2.72e-06,2541.3,2541.2,10.76955038]
[1747706469329,2.72e-06,2541.3,2541.2,13.18455038]
[1747706473532,2.72e-06,2541.3,2541.2,18.18455038]
[1747706475443,2.72e-06,2541.3,2541.2,18.77558085]
[1747706475926,8.28,2542.4,2541.2,18.77558085]
[1747706475927,3.2078,2542.7,2541.2,26.84273085]
[1747706476123,1.3376,2542.7,2542.5,0.78645]
[1747706476830,0.6553,2542.7,2542.5,0.78645]
[1747706477135,0.00590272,2542.8,2542.5,3.52645]
[1747706477339,0.00590272,2542.8,2542.5,4.82565]
[1747706477631,0.00590272,2542.8,2542.5,13.10465]
[1747706477837,0.00590272,2542.8,2542.7,0.78639]
[1747706478034,0.00590272,2542.8,2542.7,3.99419]
[1747706478627,0.00590272,2542.8,2542.7,5.98579]
[1747706479241,1.2826,2543.4,2543.3,0.7862]
[1747706479436,1.2826,2543.4,2543.2,0.78622]
[1747706479737,1.2826,2543.4,2543.3,0.7862]
[1747706480140,1.2826,2543.4,2543.1,4.5039]
[1747706480937,1.2826,2543.4,2543.3,0.7862]
[1747706481731,1.2826,2543.4,2543.2,2.12153]
[1747706481935,0.78627,2543.1,2543.0,8.279]
[1747706482125,0.78635,2542.9,2542.7,3.6176552]
[1747706482333,0.78636,2542.9,2542.7,3.6176552]
[1747706482535,1.9056,2542.8,2542.7,3.6176552]
[1747706482742,2.69196,2542.8,2542.7,3.6176552]
[1747706483043,1.9056,2542.8,2542.7,3.6176552]
[1747706483446,1.9056,2542.8,2542.7,4.4040452]
[1747706483740,1.9056,2542.8,2542.7,3.2078]
[1747706484038,1.9056,2542.8,2542.7,3.99419]
[1747706484240,2.69196,2542.8,2542.7,3.2078]
[1747706484427,1.9056,2542.8,2542.7,3.2078]
[1747706484833,7.69196,2542.8,2542.7,3.2078]
[1747706485336,1.9056,2542.8,2542.7,3.99419]
[1747706485747,0.6418,2543.3,2543.2,0.78624]
[1747706486338,0.6418,2543.3,2543.0,3.2078]
[1747706486547,1.42802,2543.3,2543.0,3.99407]
[1747706486838,0.6418,2543.3,2543.1,0.78625]
[1747706487042,0.6418,2543.3,2543.2,0.78624]
[1747706487248,0.6318,2543.4,2543.3,0.7862]
[1747706487444,0.6318,2543.4,2543.3,3.994]